fUSD/lending_fUSD_20240212
["ID","MTS","AMOUNT","RATE_DAILY","PERIOD"]
[313801788,1707732634158,-500.0,0.00022408,2]
[313801789,1707732634168,-1096.1,0.00022408,2]
[313801790,1707732634179,-500.0,0.00022408,2]
[313801791,1707732634189,-500.0,0.00022408,2]
[313801792,1707732634198,-686.49,0.00022408,2]
[313801793,1707732634208,-1287.34,0.00022408,2]
[313801794,1707732634218,-430.93072563,0.00022408,2]
[313801795,1707732634228,-1694.85,0.00022408,2]
[313801796,1707732634238,-500.0,0.00022408,2]
[313801797,1707732634251,-500.0,0.00022408,2]
[313801798,1707732634261,-3109.15,0.00022408,2]
[313801799,1707732634271,-515.36,0.00022408,2]
[313801800,1707732634280,-500.0,0.00022408,2]
[313801801,1707732634290,-723.14,0.00022408,2]
[313801802,1707732634300,-500.0,0.00022408,2]
[313801803,1707732634309,-512.16,0.00022408,2]
[313801804,1707732634319,-500.0,0.00022408,2]
[313801805,1707732634329,-500.0,0.00022408,2]
[313801806,1707732634340,-2908.46,0.00022408,2]
[313801807,1707732634351,-2558.67,0.00022408,2]
[313801808,1707732634361,-500.0,0.00022408,2]
[313801809,1707732634372,-859.91,0.00022408,2]
[313801810,1707732634382,-500.0,0.00022408,2]
[313801811,1707732634393,-1705.21,0.00022408,2]
[313801812,1707732634403,-500.0,0.00022408,2]
[313801813,1707732634414,-500.0,0.00022408,2]
[313801814,1707732634424,-500.0,0.00022408,2]
[313801815,1707732634434,-945.94,0.00022408,2]
[313801816,1707732634451,-1815.45,0.00022408,2]
[313801817,1707732634471,-500.0,0.00022408,2]
[313801818,1707732634482,-835.09,0.00022408,2]
[313801819,1707732634495,-1244.88,0.00022408,2]
[313801820,1707732634506,-500.0,0.00022408,2]
[313801821,1707732634517,-2150.5,0.00022408,2]
[313801822,1707732634528,-500.0,0.00022408,2]
[313801823,1707732634539,-1518.75,0.00022408,2]
[313801824,1707732634550,-500.0,0.00022408,2]
[313801825,1707732634561,-797.25,0.00022408,2]
[313801826,1707732634572,-500.0,0.00022408,2]
[313801827,1707732634582,-549.46,0.00022408,2]
[313801828,1707732634593,-793.11,0.00022408,2]
[313801829,1707732634604,-500.0,0.00022408,2]
[313801830,1707732634614,-174.01585461,0.00022408,2]
[313801831,1707732635174,-456.81059646,0.00022408,2]
[313801832,1707732635187,-5909.28354893,0.00022408,2]
[313801833,1707732635198,-500.0,0.00022408,2]
[313801834,1707732635208,-500.0,0.00022408,2]
[313801835,1707732635219,-500.0,0.00022408,2]
[313801836,1707732635230,-760.5,0.00022408,2]
[313801837,1707732635241,-885.05,0.00022408,2]
[313801838,1707732635252,-500.0,0.00022408,2]
[313801839,1707732635262,-500.0,0.00022408,2]
[313801840,1707732635272,-500.0,0.00022408,2]
[313801841,1707732635282,-500.0,0.00022408,2]
[313801842,1707732635292,-824.29,0.00022408,2]
[313801843,1707732635302,-500.0,0.00022408,2]
[313801844,1707732635312,-1912.19,0.00022408,2]
[313801845,1707732635322,-500.0,0.00022408,2]
[313801846,1707732635332,-500.0,0.00022408,2]
[313801847,1707732635342,-524.07,0.00022408,2]
[313801848,1707732635352,-870.61,0.00022408,2]
[313801849,1707732635362,-250.0,0.00022408,2]
[313801850,1707732635372,-500.0,0.00022408,2]
[313801851,1707732635381,-500.0,0.00022408,2]
[313801852,1707732635391,-500.0,0.00022408,2]
[313801853,1707732635401,-500.0,0.00022408,2]
[313801854,1707732635412,-500.0,0.00022408,2]
[313801855,1707732635422,-1407.77,0.00022408,2]
[313801856,1707732635432,-719.92,0.00022408,2]
[313801857,1707732635444,-589.94,0.00022408,2]
[313801858,1707732635455,-500.0,0.00022408,2]
[313801859,1707732635755,-500.0,0.00022408,2]
[313801860,1707732635793,-886.85,0.00022408,2]
[313801861,1707732635803,-3364.83,0.00022408,2]
[313801862,1707732635814,-889.16,0.00022408,2]
[313801863,1707732635824,-2253.41,0.00022408,2]
[313801864,1707732635834,-500.0,0.00022408,2]
[313801865,1707732635844,-270.51536316,0.00022408,2]
[313801866,1707732635855,-2668.33,0.00022408,2]
[313801867,1707732635866,-500.0,0.00022408,2]
[313801868,1707732635876,-500.0,0.00022408,2]
[313801869,1707732635885,-500.0,0.00022408,2]
[313801870,1707732635895,-2841.62,0.00022408,2]
[313801871,1707732635904,-500.0,0.00022408,2]
[313801872,1707732635915,-500.0,0.00022408,2]
[313801873,1707732635924,-500.0,0.00022408,2]
[313801874,1707732635934,-500.0,0.00022408,2]
[313801875,1707732635944,-1593.09,0.00022408,2]
[313801876,1707732635953,-3601.86,0.00022408,2]
[313801877,1707732635963,-507.68,0.00022408,2]
[313801878,1707732635972,-500.0,0.00022408,2]
[313801879,1707732635982,-622.34,0.00022408,2]
[313801880,1707732635992,-500.0,0.00022408,2]
[313801881,1707732636001,-500.0,0.00022408,2]
[313801882,1707732636011,-3391.96,0.00022408,2]
[313801883,1707732636020,-1429.88,0.00022408,2]
[313801884,1707732636030,-393.87342807,0.00022408,2]
[313801885,1707732636039,-500.0,0.00022408,2]
[313801886,1707732636049,-1751.81,0.00022408,2]
[313801887,1707732636058,-868.79,0.00022408,2]
[313801888,1707732636067,-500.0,0.00022408,2]
[313801889,1707732636076,-500.0,0.00022408,2]
[313801890,1707732636085,-1586.87,0.00022408,2]
[313801891,1707732636094,-552.92,0.00022408,2]
[313801892,1707732636104,-500.0,0.00022408,2]
[313801893,1707732636113,-695.87,0.00022408,2]
[313801894,1707732636122,-755.73,0.00022408,2]
[313801895,1707732636131,-507.58,0.00022408,2]
[313801896,1707732636140,-584.32,0.00022408,2]
[313801897,1707732636150,-6607.13,0.00022408,2]
[313801898,1707732636159,-2271.43,0.00022408,2]
[313801899,1707732636168,-500.0,0.00022408,2]
[313801900,1707732636177,-500.0,0.00022408,2]
[313801901,1707732636187,-1011.5,0.00022408,2]
[313801902,1707732636196,-500.0,0.00022408,2]
[313801903,1707732636205,-625.88386743,0.00022408,2]
[313801904,1707732636214,-2912.39436345,0.00022408,2]
[313801905,1707732636224,-7428.75847425,0.00022409,2]
[313801906,1707732636343,-350.0,0.00022408,2]
[313801907,1707732636357,-386.11,0.00022408,2]
[313801908,1707732636367,-128611.79,0.00022409,2]
[313801909,1707732636411,-446.09013255,0.00022409,2]
[313801910,1707732636440,-347.0939803,0.00022409,2]
[313801911,1707732636452,-11937.5,0.00022409,2]
[313801912,1707732636470,-7175.736,0.00022409,2]
[313801930,1707732637872,-621.09113043,0.00022407,2]
[313801931,1707732637882,-712.82,0.00022407,2]
[313801932,1707732637891,-5971.57486269,0.00022409,2]
[313801933,1707732637902,-56126.62922932,0.00022409,2]
[313801934,1707732637918,-26954.82732089,0.00022409,2]
[313801935,1707732637927,-14156.2266,0.00022409,2]
[313801936,1707732637936,-6229.2687,0.00022409,2]
[313801937,1707732637946,-153.86516527,0.00022467,2]
[313801938,1707732637955,-157.64,0.00022479,2]
[313801939,1707732637965,-167.01,0.00022499,2]
[313801940,1707732637975,-389.67,0.00022499,2]
[313801941,1707732637984,-690.44,0.00022499,2]
[313801942,1707732637996,-200.0,0.000225,8]
[313801943,1707732638005,-22454.4026955,0.00022508,2]
[313801944,1707732638072,-33100.5973045,0.00022508,2]
[313801946,1707732638082,-589.7,0.00022508,2]
[313801948,1707732638091,-950.13,0.00022508,2]
[313801950,1707732638099,-854.61,0.00022508,2]
[313801952,1707732638108,-500.0,0.00022508,2]
[313801954,1707732638118,-892.93,0.00022508,2]
[313801956,1707732638127,-680.99,0.00022508,2]
[313801958,1707732638135,-887.49,0.00022508,2]
[313801960,1707732638144,-821.0,0.00022508,2]
[313801962,1707732638153,-826.48,0.00022508,2]
[313801965,1707732638162,-502.02,0.00022508,2]
[313801967,1707732638171,-500.0,0.00022508,2]
[313801968,1707732638180,-500.0,0.00022508,2]
[313801969,1707732638190,-2045.22,0.00022508,2]
[313801970,1707732638199,-500.0,0.00022508,2]
[313801971,1707732638208,-524.97,0.00022508,2]
[313801972,1707732638217,-859.41,0.00022508,2]
[313801973,1707732638226,-500.0,0.00022508,2]
[313801974,1707732638236,-500.0,0.00022508,2]
[313801975,1707732638246,-500.0,0.00022508,2]
[313801976,1707732638256,-500.0,0.00022508,2]
[313801977,1707732638265,-500.0,0.00022508,2]
[313801978,1707732638275,-500.0,0.00022508,2]
[313801979,1707732638285,-500.0,0.00022508,2]
[313801980,1707732638294,-500.0,0.00022508,2]
[313801981,1707732638303,-500.0,0.00022508,2]
[313801982,1707732638313,-927.55,0.00022508,2]
[313801983,1707732638322,-500.0,0.00022508,2]
[313801984,1707732638331,-500.0,0.00022508,2]
[313801985,1707732638341,-500.0,0.00022508,2]
[313801986,1707732638350,-2517.15,0.00022508,2]
[313801987,1707732638359,-548.37,0.00022508,2]
[313801988,1707732638368,-500.0,0.00022508,2]
[313801989,1707732638377,-500.0,0.00022508,2]
[313801990,1707732638386,-492.17,0.00022508,2]
[313801991,1707732638395,-500.0,0.00022508,2]
[313801992,1707732638405,-500.0,0.00022508,2]
[313801993,1707732638414,-500.0,0.00022508,2]
[313801994,1707732638423,-500.0,0.00022508,2]
[313801995,1707732638433,-500.0,0.00022508,2]
[313801996,1707732638442,-564.15,0.00022508,2]
[313801997,1707732638451,-500.0,0.00022508,2]
[313801998,1707732638460,-500.0,0.00022508,2]
[313801999,1707732638470,-500.0,0.00022508,2]
[313802000,1707732638479,-506.96,0.00022508,2]
[313802001,1707732638488,-500.0,0.00022508,2]
[313802002,1707732638498,-500.0,0.00022508,2]
[313802003,1707732638507,-687.2,0.00022508,2]
[313802004,1707732638516,-501.18,0.00022508,2]
[313802005,1707732638525,-500.0,0.00022508,2]
[313802006,1707732638534,-500.0,0.00022508,2]
[313802007,1707732638544,-723.46,0.00022508,2]
[313802008,1707732638553,-555.18,0.00022508,2]
[313802009,1707732638562,-500.0,0.00022508,2]
[313802010,1707732638571,-506.96,0.00022508,2]
[313802011,1707732638581,-500.0,0.00022508,2]
[313802012,1707732638591,-500.0,0.00022508,2]
[313802013,1707732638600,-500.0,0.00022508,2]
[313802014,1707732638608,-530.34,0.00022508,2]
[313802015,1707732638618,-641.46,0.00022508,2]
[313802016,1707732638627,-761.91,0.00022508,2]
[313802017,1707732638636,-566.0855557,0.00022509,2]
[313802018,1707732638646,-4373.012545,0.00022582,2]
[313802019,1707732638655,-1021.0,0.000226,2]
[313802020,1707732638665,-500.0,0.000226,8]
[313802021,1707732638675,-208.13052769,0.00022608,2]
[313802022,1707732638684,-531.07266181,0.00022608,2]
[313802023,1707732638693,-500.0,0.00022608,2]
[313802024,1707732638703,-183.87670948,0.00022608,2]
[313802025,1707732638712,-2115.0014106,0.00022608,2]
[313802026,1707732638721,-631.41,0.00022608,2]
[313802027,1707732638730,-966.09,0.00022608,2]
[313802028,1707732638739,-500.0,0.00022608,2]
[313802029,1707732638751,-163.92528522,0.00022608,2]
[313802030,1707732638767,-378.90471478,0.00022608,2]
[313802031,1707732638776,-500.0,0.00022608,2]
[313802032,1707732638786,-500.0,0.00022608,2]
[313802033,1707732638795,-498.71853037,0.00022608,2]
[313802034,1707732638805,-500.0,0.00022608,2]
[313802035,1707732638815,-500.0,0.00022608,2]
[313802036,1707732638825,-500.0,0.00022608,2]
[313802037,1707732638834,-500.0,0.00022608,2]
[313802038,1707732638844,-500.0,0.00022608,2]
[313802039,1707732638854,-500.0,0.00022608,2]
[313802040,1707732638863,-457.85496941,0.00022608,2]
[313802041,1707732638875,-42.14503059,0.00022608,2]
[313802042,1707732638885,-217.17,0.00022608,2]
[313802043,1707732638894,-500.0,0.00022608,2]
[313802044,1707732638903,-500.0,0.00022608,2]
[313802045,1707732638912,-651.08,0.00022608,2]
[313802046,1707732638921,-500.0,0.00022608,2]
[313802047,1707732638930,-826.55,0.00022608,2]
[313802048,1707732638939,-964.34,0.00022608,2]
[313802049,1707732638948,-500.0,0.00022608,2]
[313802050,1707732638957,-500.0,0.00022608,2]
[313802051,1707732638967,-819.22,0.00022608,2]
[313802052,1707732638976,-500.0,0.00022608,2]
[313802053,1707732638985,-500.0,0.00022608,2]
[313802054,1707732638995,-557.37,0.00022608,2]
[313802055,1707732639005,-853.49,0.00022608,2]
[313802056,1707732639014,-1151.03,0.00022608,2]
[313802057,1707732639023,-500.0,0.00022608,2]
[313802058,1707732639032,-500.0,0.00022608,2]
[313802059,1707732639041,-981.5,0.00022608,2]
[313802060,1707732639051,-500.0,0.00022608,2]
[313802061,1707732639060,-1198.37,0.00022608,2]
[313802062,1707732639069,-520.38,0.00022608,2]
[313802063,1707732639078,-500.0,0.00022609,2]
[313802064,1707732639087,-500.0,0.00022609,2]
[313802065,1707732639097,-500.0,0.00022609,2]
[313802066,1707732639107,-500.0,0.00022609,2]
[313802067,1707732639117,-500.0,0.00022609,2]
[313802068,1707732639126,-483.06468208,0.00022609,2]
[313802069,1707732639135,-500.0,0.00022609,2]
[313802070,1707732639145,-500.0,0.00022609,2]
[313802071,1707732639154,-562.05695728,0.00022609,2]
[313802072,1707732639163,-500.0,0.00022609,2]
[313802073,1707732639177,-500.0,0.00022609,2]
[313802074,1707732639186,-500.93220998,0.00022609,2]
[313802075,1707732639195,-500.0,0.00022609,2]
[313802076,1707732639204,-500.0,0.00022609,2]
[313802077,1707732639213,-500.0,0.00022609,2]
[313802078,1707732639222,-500.0,0.00022609,2]
[313802079,1707732639232,-500.0,0.00022609,2]
[313802080,1707732639241,-500.0,0.00022609,2]
[313802081,1707732639252,-500.0,0.00022609,2]
[313802082,1707732639261,-500.0,0.00022609,2]
[313802083,1707732639270,-500.0,0.00022609,2]
[313802084,1707732639280,-557.22,0.00022609,2]
[313802085,1707732639289,-500.0,0.00022609,2]
[313802086,1707732639298,-500.0,0.00022609,2]
[313802087,1707732639307,-500.0,0.00022609,2]
[313802088,1707732639319,-500.0,0.00022609,2]
[313802089,1707732639328,-500.0,0.00022609,2]
[313802090,1707732639338,-500.0,0.00022609,2]
[313802091,1707732639347,-500.0,0.00022609,2]
[313802092,1707732639356,-500.0,0.00022609,2]
[313802093,1707732639365,-500.0,0.00022609,2]
[313802094,1707732639374,-500.0,0.00022609,2]
[313802095,1707732639383,-607.08,0.00022609,2]
[313802096,1707732639392,-500.0,0.00022609,2]
[313802097,1707732639401,-499.79920001,0.00022609,2]
[313802098,1707732639411,-500.0,0.00022609,2]
[313802099,1707732639420,-500.0,0.00022609,2]
[313802100,1707732639429,-500.0,0.00022609,2]
[313802101,1707732639438,-500.0,0.00022609,2]
[313802102,1707732639448,-500.0,0.00022609,2]
[313802103,1707732639458,-500.0,0.00022609,2]
[313802104,1707732639467,-500.0,0.00022609,2]
[313802105,1707732639476,-500.0,0.00022609,2]
[313802106,1707732639485,-500.0,0.00022609,2]
[313802107,1707732639495,-371.18379088,0.00022609,2]
[313802108,1707732639504,-513.12,0.00022609,2]
[313802109,1707732639513,-500.0,0.00022609,2]
[313802110,1707732639522,-500.0,0.00022609,2]
[313802111,1707732639532,-535.39,0.00022609,2]
[313802112,1707732639541,-590.76,0.00022609,2]
[313802113,1707732639550,-500.0,0.00022609,2]
[313802114,1707732639560,-855.69,0.00022609,2]
[313802115,1707732639569,-500.0,0.00022609,2]
[313802116,1707732639579,-682.75,0.00022609,2]
[313802117,1707732639588,-500.0,0.00022609,2]
[313802118,1707732639598,-500.0,0.00022609,2]
[313802119,1707732639607,-500.0,0.00022609,2]
[313802120,1707732639616,-500.0,0.00022609,2]
[313802121,1707732639625,-500.0,0.00022609,2]
[313802122,1707732639634,-500.0,0.00022609,2]
[313802123,1707732639643,-500.0,0.00022609,2]
[313802124,1707732639653,-261.72692194,0.00022609,2]
[313802125,1707732639662,-500.0,0.00022609,2]
[313802126,1707732639671,-500.0,0.00022609,2]
[313802127,1707732639682,-500.0,0.00022609,2]
[313802128,1707732639691,-500.0,0.00022609,2]
[313802129,1707732639700,-500.0,0.00022609,2]
[313802130,1707732639710,-500.0,0.00022609,2]
[313802131,1707732639719,-500.0,0.00022609,2]
[313802132,1707732639728,-500.0,0.00022609,2]
[313802133,1707732639737,-500.0,0.00022609,2]
[313802134,1707732639746,-500.0,0.00022609,2]
[313802135,1707732639755,-500.0,0.00022609,2]
[313802136,1707732639769,-525.27,0.00022609,2]
[313802137,1707732639778,-871.05,0.00022609,2]
[313802138,1707732639787,-339.02,0.00022609,2]
[313802139,1707732639797,-500.0,0.00022609,2]
[313802140,1707732639806,-193.68,0.00022609,2]
[313802141,1707732639815,-500.0,0.00022609,2]
[313802142,1707732639824,-500.0,0.00022609,2]
[313802143,1707732639833,-500.0,0.00022609,2]
[313802144,1707732639842,-675.33,0.00022609,2]
[313802145,1707732639851,-659.55,0.00022609,2]
[313802146,1707732639860,-500.0,0.00022609,2]
[313802147,1707732639870,-561.66,0.00022609,2]
[313802148,1707732639879,-500.0,0.00022609,2]
[313802149,1707732639888,-500.0,0.00022609,2]
[313802150,1707732639897,-500.0,0.00022609,2]
[313802151,1707732639907,-500.0,0.00022609,2]
[313802152,1707732639916,-536.81,0.00022609,2]
[313802153,1707732639925,-500.0,0.00022609,2]
[313802154,1707732639935,-500.0,0.00022609,2]
[313802155,1707732639944,-249.75505232,0.00022609,2]
[313802156,1707732639958,-250.24494768,0.00022609,2]
[313802157,1707732639967,-500.0,0.00022609,2]
[313802158,1707732639976,-500.0,0.00022609,2]
[313802159,1707732639986,-500.0,0.00022609,2]
[313802160,1707732639996,-520.88,0.00022609,2]
[313802161,1707732640005,-500.0,0.00022609,2]
[313802162,1707732640014,-500.0,0.00022609,2]
[313802163,1707732640023,-500.0,0.00022609,2]
[313802164,1707732640032,-296.5505997,0.00022609,2]
[313802165,1707732640041,-328.84137904,0.00022609,2]
[313802166,1707732640053,-171.15862096,0.00022609,2]
[313802167,1707732640062,-500.0,0.00022609,2]
[313802168,1707732640071,-153.86516527,0.00022626,2]
[313802170,1707732640079,-1312.16430252,0.00022642,2]
[313802171,1707732640090,-500.0,0.00022681,2]
[313802173,1707732640099,-5445.56,0.00022681,2]
[313802175,1707732640108,-5838.81,0.00022681,2]
[313802176,1707732640117,-2035.42,0.00022681,2]
[313802177,1707732640126,-797.58,0.00022681,2]
[313802178,1707732640135,-509.0,0.00022681,2]
[313802180,1707732640144,-5762.06,0.00022681,2]
[313802183,1707732640153,-507.13,0.00022681,2]
[313802185,1707732640162,-500.0,0.00022681,2]
[313802186,1707732640171,-500.0,0.00022681,2]
[313802187,1707732640181,-1688.29,0.00022681,2]
[313802188,1707732640189,-552.02,0.00022681,2]
[313802189,1707732640198,-500.0,0.00022681,2]
[313802190,1707732640207,-5762.69,0.00022681,2]
[313802191,1707732640216,-1387.68,0.00022681,2]
[313802192,1707732640225,-2552.03,0.00022681,2]
[313802193,1707732640234,-500.0,0.00022681,2]
[313802194,1707732640243,-961.84,0.00022681,2]
[313802195,1707732640253,-1526.29,0.00022681,2]
[313802196,1707732640263,-592.06,0.00022681,2]
[313802197,1707732640272,-645.99,0.00022681,2]
[313802198,1707732640282,-500.0,0.00022681,2]
[313802199,1707732640291,-3968.69,0.00022681,2]
[313802200,1707732640301,-500.0,0.00022681,2]
[313802201,1707732640310,-1739.19,0.00022681,2]
[313802202,1707732640320,-500.0,0.00022681,2]
[313802203,1707732640329,-2020.87,0.00022681,2]
[313802204,1707732640338,-9391.06,0.00022681,2]
[313802205,1707732640347,-500.0,0.00022681,2]
[313802206,1707732640357,-500.0,0.00022681,2]
[313802207,1707732640367,-500.0,0.00022681,2]
[313802208,1707732640376,-500.0,0.00022681,2]
[313802209,1707732640386,-500.0,0.00022681,2]
[313802210,1707732640395,-500.0,0.00022681,2]
[313802211,1707732640405,-1593.42,0.00022681,2]
[313802212,1707732640415,-500.0,0.00022681,2]
[313802213,1707732640424,-2747.24,0.00022681,2]
[313802214,1707732640434,-500.0,0.00022681,2]
[313802215,1707732640443,-535.71,0.00022681,2]
[313802216,1707732640453,-500.0,0.00022681,2]
[313802217,1707732640463,-777.44,0.00022681,2]
[313802218,1707732640473,-987.35,0.00022681,2]
[313802219,1707732640482,-933.88,0.00022681,2]
[313802220,1707732640493,-500.0,0.00022681,2]
[313802221,1707732640505,-500.0,0.00022681,2]
[313802222,1707732640515,-572.78,0.00022681,2]
[313802223,1707732640525,-1125.23,0.00022681,2]
[313802224,1707732640534,-3729.13,0.00022681,2]
[313802225,1707732640543,-1850.91,0.00022681,2]
[313802226,1707732640553,-712.82,0.00022681,2]
[313802227,1707732640562,-504.0,0.00022681,2]
[313802228,1707732640571,-327151.5428015,0.00022682,2]
[313802229,1707732640592,-5347.20738932,0.00022682,2]
[313802230,1707732640679,-342569.39937701,0.00022682,2]
[313802231,1707732640688,-569.33914088,0.00022682,2]
[313802232,1707732640698,-500.0,0.00022682,2]
[313802233,1707732640707,-500.0,0.00022682,2]
[313802234,1707732640717,-500.0,0.00022682,2]
[313802235,1707732640726,-643.46,0.00022682,2]
[313802236,1707732640735,-500.0,0.00022682,2]
[313802237,1707732640747,-558.87,0.00022682,2]
[313802238,1707732640757,-569.05,0.00022682,2]
[313802239,1707732640767,-500.0,0.00022682,2]
[313802240,1707732640776,-500.0,0.00022682,2]
[313802241,1707732640786,-500.0,0.00022682,2]
[313802242,1707732640797,-500.0,0.00022682,2]
[313802243,1707732640806,-526.94,0.00022682,2]
[313802244,1707732640815,-500.0,0.00022682,2]
[313802245,1707732640824,-500.0,0.00022682,2]
[313802246,1707732640834,-727.92,0.00022682,2]
[313802247,1707732640843,-500.0,0.00022682,2]
[313802248,1707732640852,-670.9,0.00022682,2]
[313802249,1707732640862,-500.0,0.00022682,2]
[313802250,1707732640875,-500.0,0.00022682,2]
[313802251,1707732640885,-500.0,0.00022682,2]
[313802252,1707732640894,-906.87,0.00022682,2]
[313802253,1707732640903,-500.0,0.00022682,2]
[313802254,1707732640912,-500.0,0.00022682,2]
[313802255,1707732640921,-824.95,0.00022682,2]
[313802256,1707732640930,-500.0,0.00022682,2]
[313802257,1707732640939,-500.0,0.00022682,2]
[313802258,1707732640948,-501.14,0.00022682,2]
[313802259,1707732640958,-500.0,0.00022682,2]
[313802260,1707732640967,-500.0,0.00022682,2]
[313802261,1707732640976,-500.0,0.00022682,2]
[313802262,1707732640986,-500.0,0.00022682,2]
[313802263,1707732640997,-530.88,0.00022682,2]
[313802264,1707732641006,-500.0,0.00022682,2]
[313802265,1707732641015,-500.0,0.00022682,2]
[313802266,1707732641025,-504.17,0.00022682,2]
[313802267,1707732641034,-410.4895361,0.00022682,2]
[313802268,1707732641043,-500.0,0.00022682,2]
[313802269,1707732641051,-500.0,0.00022682,2]
[313802270,1707732641061,-500.0,0.00022682,2]
[313802271,1707732641070,-500.0,0.00022682,2]
[313802272,1707732641079,-500.0,0.00022682,2]
[313802273,1707732641088,-500.0,0.00022682,2]
[313802274,1707732641098,-747.08,0.00022682,2]
[313802275,1707732641107,-797.77,0.00022682,2]
[313802276,1707732641116,-500.0,0.00022682,2]
[313802277,1707732641125,-500.0,0.00022682,2]
[313802278,1707732641134,-500.0,0.00022682,2]
[313802279,1707732641143,-500.0,0.00022682,2]
[313802280,1707732641153,-500.0,0.00022682,2]
[313802281,1707732641162,-694.96,0.00022682,2]
[313802282,1707732641171,-522.69,0.00022682,2]
[313802283,1707732641179,-500.0,0.00022682,2]
[313802284,1707732641189,-500.0,0.00022682,2]
[313802285,1707732641198,-500.0,0.00022682,2]
[313802286,1707732641206,-500.0,0.00022682,2]
[313802287,1707732641215,-500.0,0.00022682,2]
[313802288,1707732641224,-500.0,0.00022682,2]
[313802289,1707732641233,-568.84,0.00022682,2]
[313802290,1707732641242,-80.01293054,0.00022682,2]
[313802291,1707732641289,-419.98706946,0.00022682,2]
[313802292,1707732641299,-613.32,0.00022682,2]
[313802293,1707732641308,-500.0,0.00022682,2]
[313802294,1707732641317,-500.0,0.00022682,2]
[313802295,1707732641327,-500.0,0.00022682,2]
[313802296,1707732641336,-500.0,0.00022682,2]
[313802297,1707732641346,-500.0,0.00022682,2]
[313802298,1707732641356,-1062.0,0.00022682,2]
[313802299,1707732641365,-500.0,0.00022682,2]
[313802300,1707732641374,-500.0,0.00022682,2]
[313802301,1707732641383,-888.32,0.00022682,2]
[313802302,1707732641393,-500.0,0.00022682,2]
[313802303,1707732641402,-953.38,0.00022682,2]
[313802304,1707732641412,-693.46,0.00022682,2]
[313802305,1707732641421,-769.06,0.00022682,2]
[313802306,1707732641431,-1184.86,0.00022682,2]
[313802307,1707732641441,-500.0,0.00022682,2]
[313802308,1707732641451,-604.59,0.00022682,2]
[313802309,1707732641461,-500.0,0.00022682,2]
[313802310,1707732641471,-500.0,0.00022682,2]
[313802311,1707732641480,-650.84,0.00022682,2]
[313802312,1707732641490,-500.0,0.00022682,2]
[313802313,1707732641501,-500.0,0.00022682,2]
[313802314,1707732641510,-500.0,0.00022682,2]
[313802315,1707732641520,-500.0,0.00022682,2]
[313802317,1707732641529,-500.0,0.00022682,2]
[313802318,1707732641539,-804.72,0.00022682,2]
[313802319,1707732641548,-500.0,0.00022682,2]
[313802320,1707732641558,-554.96507914,0.00022682,2]
[313802321,1707732641567,-500.0,0.00022682,2]
[313802322,1707732641577,-500.0,0.00022682,2]
[313802323,1707732641587,-331.79727451,0.00022682,2]
[313802324,1707732641597,-500.0,0.00022682,2]